[Event "32nd Iranian Women-ch 2022"]
[Site "Kermanshah"]
[Date "2022.03.05"]
[Round "9.6"]
[White "Hamedi Nia, Vesal"]
[Black "Parvizi, Anita"]
[Result "1-0"]
[ECO "D85"]
[WhiteElo "1980"]
[BlackElo "1693"]
[Annotator "NA"]
[PlyCount "101"]
[EventDate "2022.02.28"]
[EventType "tourn"]
[EventCountry "IRI"]
[SourceTitle "playchess.com"]
[Source "ChessBase"]
[SourceQuality "1"]
[TimeControl "5400+30"]

1. d4 {[%emt 0:00:05]} Nf6 {[%emt 0:00:05]} 2. c4 {[%emt 0:00:07]} g6 {[%emt 0:00:04]} 3. Nc3 {[%emt 0:00:04]} d5 {[%emt 0:00:06]} 4. cxd5 {[%emt 0:01:17]} Nxd5 {[%emt 0:00:08]} 5. e4 {[%emt 0:00:12]} Nxc3 {[%emt 0:00:05]} 6. bxc3 {[%emt 0:00:02]} Bg7 {[%emt 0:00:08]} 7. Nf3 {[%emt 0:00:50]} c5 {[%emt 0:00:32]} 8. Bc4 {[%emt 0:03:38]} Nc6 {[%emt 0:02:42]} 9. Be3 {[%emt 0:02:40]} O-O {[%emt 0:01:47]} 10. O-O {[%emt 0:02:45]} Bg4 {[%emt 0:01:27]} 11. dxc5 {[%emt 0:26:34]} Bxc3 {[%emt 0:06:54]} 12. Rc1 {[%emt 0:01:05]} Bg7 {[%emt 0:04:25]} 13. h3 {[%emt 0:04:18]} Bxf3 {[%emt 0:05:59]} 14. Qxf3 {[%emt 0:00:21]} Ne5 {[%emt 0:00:09]} 15. Qe2 {[%emt 0:00:14]} Nxc4 {[%emt 0:00:27]} 16. Qxc4 {[%emt 0:00:08]} Qc7 {[%emt 0:01:28]} 17. Qa4 {[%emt 0:04:21]} Rfd8 {[%emt 0:07:20]} 18. Rfd1 {[%emt 0:01:43]} Qc6 {[%emt 0:04:21]} 19. Qxc6 {[%emt 0:02:03]} bxc6 {[%emt 0:00:02]} 20. Rxd8+ {[%emt 0:03:16]} Rxd8 {[%emt 0:00:01]} 21. Rb1 {[%emt 0:00:08]} Bd4 {[%emt 0:01:31]} 22. Rd1 {[%emt 0:02:44]} e5 {[%emt 0:00:10]} 23. Kf1 {[%emt 0:00:37]} Rb8 {[%emt 0:00:45]} 24. Bxd4 {[%emt 0:00:42]} exd4 {[%emt 0:00:01]} 25. Rxd4 {[%emt 0:00:15]} Rb1+ {[%emt 0:00:13]} 26. Ke2 {[%emt 0:00:02]} Rc1 {[%emt 0:00:21]} 27. Ra4 {[%emt 0:00:21]} Rxc5 {[%emt 0:00:16]} 28. Rxa7 {[%emt 0:00:10]} Rc2+ {[%emt 0:00:20]} 29. Ke3 {[%emt 0:00:20]} c5 {[%emt 0:00:34]} 30. a4 {[%emt 0:00:31]} c4 {[%emt 0:00:51]} 31. a5 {[%emt 0:04:01]} Ra2 {[%emt 0:01:45]} 32. a6 {[%emt 0:02:08]} c3 {[%emt 0:00:53]} 33. Ra8+ {[%emt 0:00:52]} Kg7 {[%emt 0:00:01]} 34. a7 {[%emt 0:01:13]} c2 {[%emt 0:03:27]} 35. Kd2 {[%emt 0:00:04]} h5 {[%emt 0:01:32]} 36. h4 {[%emt 0:13:29]} Kh7 {[%emt 0:02:10]} 37. f3 {[%emt 0:00:14]} Kg7 {[%emt 0:00:18]} 38. g4 {[%emt 0:00:11]} g5 {[%emt 0:05:50]} 39. hxg5 {[%emt 0:07:34]} h4 {[%emt 0:00:22]} 40. Rc8 {[%emt 0:00:40]} Rxa7 {[%emt 0:03:29]} 41. Rxc2 {[%emt 0:00:08]} Ra3 {[%emt 0:00:27]} 42. Ke2 {[%emt 0:00:33]} Ra5 {[%emt 0:01:04]} 43. Ke3 {[%emt 0:00:21]} Ra3+ {[%emt 0:00:16]} 44. Kf4 {[%emt 0:00:33]} Ra8 {[%emt 0:00:16]} 45. Rh2 {[%emt 0:00:42]} Rh8 {[%emt 0:00:01]} 46. Kf5 {[%emt 0:00:42]} Rh7 {[%emt 0:00:17]} 47. Rh3 {[%emt 0:00:15]} Rh8 {[%emt 0:00:20]} 48. e5 {[%emt 0:01:06]} Rh7 {[%emt 0:00:30]} 49. f4 {[%emt 0:01:05]} Rh8 {[%emt 0:00:08]} 50. g6 {[%emt 0:00:22]} fxg6+ {[%emt 0:00:52]} 51. Kg5 {[%emt 0:00:13]} 1-0

[Event "32nd Iranian Women-ch 2022"]
[Site "Kermanshah"]
[Date "2022.03.06"]
[Round "10.1"]
[White "Asgharzadeh, Mitra"]
[Black "Parvizi, Anita"]
[Result "1-0"]
[ECO "A08"]
[WhiteElo "1950"]
[BlackElo "1693"]
[Annotator "ChessBase"]
[PlyCount "59"]
[EventDate "2022.02.28"]
[EventType "tourn"]
[EventCountry "IRI"]
[SourceTitle "playchess.com"]
[Source "ChessBase"]
[SourceQuality "1"]
[TimeControl "5400+30"]

1. Nf3 {[%emt 0:00:02]} Nf6 {[%emt 0:00:10]} 2. g3 {[%emt 0:00:01]} g6 {[%emt 0:01:31]} 3. Bg2 {[%emt 0:00:01]} d5 {[%emt 0:00:21]} 4. O-O {[%emt 0:00:02]} Bg7 {[%emt 0:02:51]} 5. d3 {[%emt 0:00:01]} c5 {[%emt 0:02:02]} 6. Nbd2 {[%emt 0:00:01]} Nc6 {[%emt 0:02:19]} 7. e4 {[%emt 0:00:02]} O-O {[%emt 0:04:48]} 8. Re1 {[%emt 0:00:15]} e6 {[%emt 0:02:44]} 9. c3 {[%emt 0:00:21]} b6 {[%emt 0:05:25]} 10. h4 {[%emt 0:01:17]} Bb7 {[%emt 0:05:16]} 11. e5 {[%emt 0:02:02]} Nd7 {[%emt 0:01:22]} 12. d4 {[%emt 0:00:12]} Rc8 {[%emt 0:01:44]} 13. a3 {[%emt 0:00:31]} a5 {[%emt 0:12:05]} 14. Nf1 {[%emt 0:09:13]} b5 {[%emt 0:04:15]} 15. N1h2 {[%emt 0:01:55]} a4 {[%emt 0:03:30]} 16. Bg5 {[%emt 0:03:12]} Qb6 {[%emt 0:01:26]} 17. Ng4 {[%emt 0:11:40]} cxd4 {[%emt 0:06:59]} 18. cxd4 {[%emt 0:00:40]} Na5 {[%emt 0:00:46]} 19. Qd2 {[%emt 0:15:57]} Nb3 {[%emt 0:08:04]} 20. Qf4 {[%emt 0:01:01]} h5 {[%emt 0:09:21]} 21. Nf6+ {[%emt 0:05:55]} Nxf6 {[%emt 0:00:11]} 22. exf6 {[%emt 0:00:49]} Bh8 {[%emt 0:00:31]} 23. Rad1 {[%emt 0:02:44]} Rc4 {[%emt 0:04:18]} 24. Bh3 {[%emt 0:14:12]} Bc8 {[%emt 0:04:03]} 25. Re5 {[%emt 0:00:44]} Na5 {[%emt 0:01:36]} 26. Bf1 {[%emt 0:06:59]} Rc2 {[%emt 0:02:28]} 27. Bh6 {[%emt 0:02:37]} Re8 {[%emt 0:01:01]} 28. Bd3 {[%emt 0:00:43]} Rc7 {[%emt 0:00:36]} 29. Qg5 {[%emt 0:06:05]} Nc4 {[%emt 0:07:27]} 30. Bxg6 {[%emt 0:02:43]} 1-0

[Event "32nd Iranian Women-ch 2022"]
[Site "Kermanshah"]
[Date "2022.03.06"]
[Round "10.2"]
[White "Mahdavi, Mahdis"]
[Black "Hamedi Nia, Vesal"]
[Result "0-1"]
[ECO "C47"]
[WhiteElo "1692"]
[BlackElo "1980"]
[Annotator "ChessBase"]
[PlyCount "117"]
[EventDate "2022.02.28"]
[EventType "tourn"]
[EventCountry "IRI"]
[SourceTitle "playchess.com"]
[Source "ChessBase"]
[SourceQuality "1"]
[TimeControl "5400+30"]

1. e4 {[%emt 0:00:05]} e5 {[%emt 0:00:24]} 2. Nf3 {[%emt 0:00:11]} Nc6 {[%emt 0:00:04]} 3. Nc3 {[%emt 0:00:09]} Nf6 {[%emt 0:00:04]} 4. d4 {[%emt 0:00:14]} exd4 {[%emt 0:00:11]} 5. Nxd4 {[%emt 0:00:09]} Bb4 {[%emt 0:00:16]} 6. Nxc6 {[%emt 0:00:12]} bxc6 {[%emt 0:00:04]} 7. Bd3 {[%emt 0:00:23]} d5 {[%emt 0:00:17]} 8. exd5 {[%emt 0:00:36]} O-O {[%emt 0:00:22]} 9. O-O {[%emt 0:00:16]} cxd5 {[%emt 0:00:06]} 10. h3 {[%emt 0:03:56]} Re8 {[%emt 0:00:34]} 11. Qf3 {[%emt 0:05:24]} c6 {[%emt 0:00:52]} 12. Bf4 {[%emt 0:03:00]} Bd6 {[%emt 0:02:12]} 13. Rad1 {[%emt 0:00:57]} Rb8 {[%emt 0:02:34]} 14. b3 {[%emt 0:05:45]} Be6 {[%emt 0:03:51]} 15. Na4 {[%emt 0:08:08]} c5 {[%emt 0:09:37]} 16. c4 {[%emt 0:11:24]} d4 {[%emt 0:03:18]} 17. Bg5 {[%emt 0:03:27]} Bd7 {[%emt 0:23:38]} 18. Rfe1 {[%emt 0:12:53]} Qa5 {[%emt 0:06:07]} 19. Rf1 {[%emt 0:11:33]} Be5 {[%emt 0:10:57]} 20. Bxf6 {[%emt 0:03:58]} Bxf6 {[%emt 0:02:16]} 21. Qh5 {[%emt 0:00:47]} g6 {[%emt 0:00:57]} 22. Qxc5 {[%emt 0:00:20]} Qa6 {[%emt 0:00:49]} 23. Qa3 {[%emt 0:15:47]} Bc6 {[%emt 0:05:52]} 24. Rfe1 {[%emt 0:04:46]} Qa5 {[%emt 0:10:27]} 25. Rxe8+ {[%emt 0:04:47]} Rxe8 {[%emt 0:00:03]} 26. Qd6 {[%emt 0:00:31]} Re6 {[%emt 0:01:08]} 27. Qf4 {[%emt 0:02:03]} Re1+ {[%emt 0:01:16]} 28. Rxe1 {[%emt 0:00:02]} Qxe1+ {[%emt 0:00:03]} 29. Bf1 {[%emt 0:00:07]} Be5 {[%emt 0:01:01]} 30. Qh4 {[%emt 0:00:18]} Be4 {[%emt 0:10:19]} 31. Nc5 {[%emt 0:00:10]} Bf5 {[%emt 0:00:23]} 32. Qd8+ {[%emt 0:01:05]} Kg7 {[%emt 0:00:00]} 33. Qd5 {[%emt 0:00:01]} Bc2 {[%emt 0:05:41]} 34. Nd7 {[%emt 0:02:33]} f6 {[%emt 0:00:44]} 35. Nc5 {[%emt 0:00:22]} Kh6 {[%emt 0:00:36]} 36. Qd7 {[%emt 0:01:05]} Bf5 {[%emt 0:00:13]} 37. Qd5 {[%emt 0:00:30]} Qb1 {[%emt 0:00:58]} 38. a3 {[%emt 0:00:57]} Qa1 {[%emt 0:00:34]} 39. b4 {[%emt 0:00:37]} Qxa3 {[%emt 0:00:20]} 40. b5 {[%emt 0:00:15]} Qc1 {[%emt 0:00:45]} 41. Qf3 {[%emt 0:00:43]} Bd6 {[%emt 0:00:31]} 42. Nb3 {[%emt 0:00:29]} Qb2 {[%emt 0:00:28]} 43. Qd1 {[%emt 0:00:31]} Bc2 {[%emt 0:00:34]} 44. Qd2+ {[%emt 0:00:02]} g5 {[%emt 0:00:16]} 45. Nxd4 {[%emt 0:00:05]} Bb4 {[%emt 0:00:39]} 46. Qe3 {[%emt 0:01:25]} Bg6 {[%emt 0:00:25]} 47. h4 {[%emt 0:00:27]} Qb1 {[%emt 0:00:41]} 48. hxg5+ {[%emt 0:00:28]} fxg5 {[%emt 0:00:00]} 49. Ne6 {[%emt 0:00:18]} Qf5 {[%emt 0:00:36]} 50. Bd3 {[%emt 0:00:43]} Qg4 {[%emt 0:00:48]} 51. f3 {[%emt 0:00:22]} Qh4 {[%emt 0:00:22]} 52. Qe5 {[%emt 0:00:42]} Qe1+ {[%emt 0:00:40]} 53. Qxe1 {[%emt 0:00:02]} Bxe1 {[%emt 0:00:01]} 54. c5 {[%emt 0:00:23]} Bxd3 {[%emt 0:00:08]} 55. b6 {[%emt 0:00:41]} axb6 {[%emt 0:00:14]} 56. cxb6 {[%emt 0:00:23]} Bg3 {[%emt 0:00:37]} 57. b7 {[%emt 0:00:33]} Ba6 {[%emt 0:00:56]} 58. Nc5 {[%emt 0:00:19]} Bb5 {[%emt 0:00:24]} 59. Ne6 {[%emt 0:01:41]} 0-1

[Event "32nd Iranian Women-ch 2022"]
[Site "Kermanshah"]
[Date "2022.03.06"]
[Round "10.3"]
[White "Paktinat, Zhina"]
[Black "Ghomi, Parnian"]
[Result "1/2-1/2"]
[ECO "B13"]
[WhiteElo "1903"]
[BlackElo "2026"]
[Annotator "NA"]
[PlyCount "133"]
[EventDate "2022.02.28"]
[EventType "tourn"]
[EventCountry "IRI"]
[SourceTitle "playchess.com"]
[Source "ChessBase"]
[SourceQuality "1"]
[TimeControl "5400+30"]

1. d4 {[%emt 0:00:01]} d5 {[%emt 0:00:05]} 2. Bf4 {[%emt 0:00:06]} Nf6 {[%emt 0:00:07]} 3. e3 {[%emt 0:00:10]} c5 {[%emt 0:00:10]} 4. c3 {[%emt 0:00:18]} Nc6 {[%emt 0:00:11]} 5. Nf3 {[%emt 0:00:13]} cxd4 {[%emt 0:07:25]} 6. exd4 {[%emt 0:00:21]} Bf5 {[%emt 0:00:26]} 7. Bd3 {[%emt 0:03:35]} Bxd3 {[%emt 0:06:07]} 8. Qxd3 {[%emt 0:00:06]} Qd7 {[%emt 0:00:07]} 9. Nbd2 {[%emt 0:10:16]} e6 {[%emt 0:00:13]} 10. O-O {[%emt 0:05:28]} Be7 {[%emt 0:01:38]} 11. h3 {[%emt 0:04:27]} O-O {[%emt 0:01:45]} 12. Ne5 {[%emt 0:01:57]} Nxe5 {[%emt 0:01:26]} 13. Bxe5 {[%emt 0:01:40]} Ne8 {[%emt 0:01:58]} 14. Rfe1 {[%emt 0:02:21]} f6 {[%emt 0:02:02]} 15. Bg3 {[%emt 0:01:41]} g6 {[%emt 0:10:36]} 16. Nb3 {[%emt 0:12:27]} Rc8 {[%emt 0:10:48]} 17. Qe2 {[%emt 0:05:21]} Ng7 {[%emt 0:01:03]} 18. Nc1 {[%emt 0:01:16]} Rfe8 {[%emt 0:01:26]} 19. Nd3 {[%emt 0:01:13]} Bf8 {[%emt 0:00:20]} 20. Qf3 {[%emt 0:04:51]} Qf7 {[%emt 0:12:51]} 21. Re2 {[%emt 0:05:45]} Nf5 {[%emt 0:09:11]} 22. Rae1 {[%emt 0:04:50]} Nxg3 {[%emt 0:20:17]} 23. Qxg3 {[%emt 0:00:27]} Re7 {[%emt 0:00:19]} 24. Qg4 {[%emt 0:06:38]} Rce8 {[%emt 0:02:33]} 25. f4 {[%emt 0:01:12]} b6 {[%emt 0:03:57]} 26. h4 {[%emt 0:01:55]} h5 {[%emt 0:05:00]} 27. Qh3 {[%emt 0:00:32]} Bg7 {[%emt 0:01:20]} 28. g3 {[%emt 0:02:36]} a5 {[%emt 0:00:34]} 29. Kg2 {[%emt 0:03:34]} Kh7 {[%emt 0:00:33]} 30. a3 {[%emt 0:03:18]} Kg8 $11 {[%emt 0:00:06]} 31. Kh2 {[%emt 0:04:12]} Kh7 {[%emt 0:00:12]} 32. Kg2 {[%emt 0:00:38]} Kh8 {[%emt 0:01:07]} 33. g4 {[%emt 0:01:06]} hxg4 {[%emt 0:00:33]} 34. Qxg4 {[%emt 0:00:05]} f5 {[%emt 0:00:01]} 35. Qf3 {[%emt 0:00:42]} Bf6 {[%emt 0:00:27]} 36. Rh1 {[%emt 0:00:38]} Kg7 {[%emt 0:00:21]} 37. Kf1 {[%emt 0:00:42]} Rh8 {[%emt 0:00:06]} 38. Reh2 {[%emt 0:03:14]} Rh5 $14 {[%emt 0:00:29]} 39. Rg1 {[%emt 0:01:16]} Kf8 {[%emt 0:00:04]} 40. Rhg2 {[%emt 0:00:58]} Rh6 {[%emt 0:01:56]} 41. Qg3 {[%emt 0:03:33]} Qh7 {[%emt 0:00:36]} 42. h5 {[%emt 0:01:48]} gxh5 {[%emt 0:00:28]} 43. Qg8+ {[%emt 0:00:20]} Qxg8 {[%emt 0:00:01]} 44. Rxg8+ {[%emt 0:00:07]} Kf7 {[%emt 0:00:07]} 45. Ne5+ {[%emt 0:00:49]} Bxe5 {[%emt 0:00:01]} 46. dxe5 {[%emt 0:00:06]} Rh7 {[%emt 0:00:26]} 47. Rb8 {[%emt 0:01:05]} h4 {[%emt 0:00:44]} 48. Rgg8 {[%emt 0:02:12]} Rg7 {[%emt 0:01:36]} 49. Rh8 {[%emt 0:01:10]} Rg6 {[%emt 0:00:40]} 50. Rxh4 {[%emt 0:00:59]} d4 {[%emt 0:00:29]} 51. cxd4 {[%emt 0:00:26]} Rd7 {[%emt 0:00:02]} 52. Rh7+ {[%emt 0:00:29]} Rg7 {[%emt 0:00:01]} 53. Rxg7+ {[%emt 0:00:11]} Kxg7 {[%emt 0:00:01]} 54. Rxb6 {[%emt 0:00:14]} Rxd4 {[%emt 0:00:01]} 55. Rxe6 {[%emt 0:00:25]} Rxf4+ {[%emt 0:00:02]} 56. Ke2 {[%emt 0:00:12]} Kf7 {[%emt 0:00:16]} 57. Rf6+ {[%emt 0:00:27]} Ke7 {[%emt 0:00:00]} 58. Kd3 {[%emt 0:00:49]} a4 {[%emt 0:01:55]} 59. Kc3 {[%emt 0:01:14]} Rf2 {[%emt 0:00:27]} 60. Ra6 {[%emt 0:00:37]} Rf4 {[%emt 0:01:07]} 61. Rf6 {[%emt 0:00:16]} Rf2 {[%emt 0:00:04]} 62. Kb4 {[%emt 0:01:00]} Rxb2+ {[%emt 0:00:24]} 63. Kxa4 {[%emt 0:00:04]} Rf2 {[%emt 0:00:11]} 64. Kb5 {[%emt 0:00:30]} f4 {[%emt 0:00:04]} 65. a4 {[%emt 0:00:25]} f3 {[%emt 0:00:59]} 66. Ka6 {[%emt 0:01:02]} Ra2 {[%emt 0:00:22]} 67. Rxf3 {[%emt 0:00:07]} 1/2-1/2

[Event "32nd Iranian Women-ch 2022"]
[Site "Kermanshah"]
[Date "2022.03.06"]
[Round "10.4"]
[White "Zahedifar, Anahita"]
[Black "Asadi, Motahare"]
[Result "1-0"]
[ECO "A37"]
[WhiteElo "2213"]
[BlackElo "2093"]
[Annotator "ChessBase"]
[PlyCount "39"]
[EventDate "2022.02.28"]
[EventType "tourn"]
[EventCountry "IRI"]
[SourceTitle "playchess.com"]
[Source "ChessBase"]
[SourceQuality "1"]
[TimeControl "5400+30"]

1. Nf3 {[%emt 0:00:06]} c5 {[%emt 0:00:20]} 2. c4 {[%emt 0:00:33]} g6 {[%emt 0:00:11]} 3. Nc3 {[%emt 0:01:24]} Bg7 {[%emt 0:00:06]} 4. g3 {[%emt 0:00:23]} Nc6 {[%emt 0:00:29]} 5. Bg2 {[%emt 0:00:16]} d6 {[%emt 0:00:15]} 6. O-O {[%emt 0:00:31]} e6 {[%emt 0:00:25]} 7. e3 {[%emt 0:05:17]} Nge7 {[%emt 0:00:20]} 8. a3 {[%emt 0:01:10]} O-O {[%emt 0:03:55]} 9. Rb1 {[%emt 0:06:23]} d5 {[%emt 0:02:36]} 10. b4 {[%emt 0:06:16]} cxb4 {[%emt 0:17:01]} 11. axb4 {[%emt 0:00:27]} dxc4 {[%emt 0:00:07]} 12. b5 {[%emt 0:02:28]} Na5 {[%emt 0:00:13]} 13. Ba3 {[%emt 0:04:44]} Re8 {[%emt 0:01:21]} 14. Ne4 {[%emt 0:08:35]} Qd3 {[%emt 0:17:17]} 15. Nd6 {[%emt 0:05:44]} Qxa3 {[%emt 0:05:24]} 16. Nxe8 {[%emt 0:00:06]} Bd7 {[%emt 0:18:15]} 17. Nxg7 {[%emt 0:00:50]} Kxg7 {[%emt 0:00:08]} 18. Ra1 {[%emt 0:00:31]} Qb4 {[%emt 0:00:06]} 19. Ra4 {[%emt 0:00:25]} Qxb5 {[%emt 0:00:06]} 20. Qa1+ {[%emt 0:00:03]} 1-0

[Event "32nd Iranian Women-ch 2022"]
[Site "Kermanshah"]
[Date "2022.03.06"]
[Round "10.5"]
[White "Masoumi, Sahar"]
[Black "Heydari, Maryam"]
[Result "1-0"]
[ECO "A59"]
[WhiteElo "1925"]
[BlackElo "1684"]
[Annotator "ChessBase"]
[PlyCount "85"]
[EventDate "2022.02.28"]
[EventType "tourn"]
[EventCountry "IRI"]
[SourceTitle "playchess.com"]
[Source "ChessBase"]
[SourceQuality "1"]
[TimeControl "5400+30"]

1. d4 {[%emt 0:00:02]} Nf6 {[%emt 0:03:26]} 2. c4 {[%emt 0:00:08]} c5 {[%emt 0:00:05]} 3. d5 {[%emt 0:00:11]} b5 {[%emt 0:00:04]} 4. cxb5 {[%emt 0:00:15]} a6 {[%emt 0:00:05]} 5. bxa6 {[%emt 1:32:24]} Bxa6 {[%emt 0:00:25]} 6. Nc3 {[%emt 0:00:00]} d6 {[%emt 0:00:06]} 7. e4 {[%emt 0:00:00]} Bxf1 {[%emt 0:00:13]} 8. Kxf1 {[%emt 0:00:00]} Nbd7 {[%emt 0:00:13]} 9. Nf3 {[%emt 0:00:00]} g6 {[%emt 0:00:19]} 10. g3 {[%emt 0:00:00]} Bg7 {[%emt 0:00:04]} 11. Kg2 {[%emt 0:00:00]} O-O {[%emt 0:00:06]} 12. Qc2 {[%emt 0:00:00]} Qb6 {[%emt 0:01:07]} 13. a4 {[%emt 0:00:00]} Rfb8 {[%emt 0:00:34]} 14. Nb5 {[%emt 0:00:00]} Ne8 {[%emt 0:02:18]} 15. Be3 {[%emt 0:00:00]} Nc7 {[%emt 0:01:25]} 16. Nxc7 {[%emt 0:00:00]} Qxc7 {[%emt 0:00:12]} 17. Rhb1 {[%emt 0:00:00]} Qb7 {[%emt 0:08:34]} 18. Ra3 {[%emt 0:00:00]} Qa6 {[%emt 0:06:42]} 19. Nd2 {[%emt 0:00:00]} Rb4 {[%emt 0:06:34]} 20. b3 {[%emt 0:00:00]} Bd4 {[%emt 0:00:34]} 21. Nc4 {[%emt 0:00:00]} Bxe3 {[%emt 0:01:58]} 22. Nxe3 {[%emt 0:00:00]} Rab8 {[%emt 0:00:34]} 23. Raa1 {[%emt 0:00:00]} Qb7 {[%emt 0:13:18]} 24. Nc4 {[%emt 0:00:00]} Nb6 {[%emt 0:10:41]} 25. Na5 {[%emt 0:00:00]} Qa6 {[%emt 0:09:45]} 26. Nc6 {[%emt 0:00:00]} Nc8 {[%emt 0:00:19]} 27. Nxb8 {[%emt 0:00:00]} Rxb8 {[%emt 0:00:06]} 28. a5 {[%emt 0:00:00]} Rb4 {[%emt 0:00:30]} 29. Rd1 {[%emt 0:00:00]} Na7 {[%emt 0:02:04]} 30. e5 {[%emt 0:00:00]} Nb5 {[%emt 0:00:44]} 31. exd6 {[%emt 0:00:00]} exd6 {[%emt 0:03:01]} 32. Qd3 {[%emt 0:00:59]} Rd4 {[%emt 0:00:43]} 33. Qe2 {[%emt 0:01:25]} Qb7 {[%emt 0:00:16]} 34. Qe8+ {[%emt 0:02:22]} Kg7 {[%emt 0:00:10]} 35. Qc6 {[%emt 0:00:45]} Qe7 {[%emt 0:01:16]} 36. Qxb5 {[%emt 0:00:51]} Qe4+ {[%emt 0:00:09]} 37. Kg1 {[%emt 0:00:23]} Rb4 {[%emt 0:01:51]} 38. Qd3 {[%emt 0:00:23]} Qe5 {[%emt 0:01:23]} 39. a6 {[%emt 0:00:12]} Rd4 {[%emt 0:00:14]} 40. Qxd4 {[%emt 0:00:31]} cxd4 {[%emt 0:00:11]} 41. a7 {[%emt 0:00:04]} Qxd5 {[%emt 0:00:33]} 42. a8=Q {[%emt 0:00:06]} Qxb3 {[%emt 0:00:06]} 43. Qa4 {[%emt 0:00:13]} 1-0

[Event "32nd Iranian Women-ch 2022"]
[Site "Kermanshah"]
[Date "2022.03.06"]
[Round "10.6"]
[White "Azali, Tannaz"]
[Black "Mahdian, Anousha"]
[Result "0-1"]
[ECO "D43"]
[WhiteElo "2100"]
[BlackElo "2179"]
[Annotator "NA"]
[PlyCount "104"]
[EventDate "2022.02.28"]
[EventType "tourn"]
[EventCountry "IRI"]
[SourceTitle "playchess.com"]
[Source "ChessBase"]
[SourceQuality "1"]
[TimeControl "5400+30"]

1. d4 {[%emt 0:00:03]} d5 {[%emt 0:01:23]} 2. c4 {[%emt 0:00:22]} e6 {[%emt 0:00:03]} 3. Nc3 {[%emt 0:00:11]} c6 {[%emt 0:00:03]} 4. Nf3 {[%emt 0:01:49]} Nf6 {[%emt 0:00:09]} 5. Bg5 {[%emt 0:00:26]} h6 {[%emt 0:00:04]} 6. Bxf6 {[%emt 0:02:28]} Qxf6 {[%emt 0:00:11]} 7. e3 {[%emt 0:00:20]} Nd7 {[%emt 0:00:14]} 8. Bd3 {[%emt 0:03:42]} dxc4 {[%emt 0:00:30]} 9. Bxc4 {[%emt 0:00:01]} g6 {[%emt 0:00:01]} 10. O-O {[%emt 0:02:13]} Bg7 {[%emt 0:00:16]} 11. a4 {[%emt 0:10:25]} a5 {[%emt 0:04:59]} 12. Qb3 {[%emt 0:03:40]} Qe7 {[%emt 0:13:44]} 13. e4 {[%emt 0:07:41]} e5 {[%emt 0:03:02]} 14. dxe5 {[%emt 0:03:01]} Nc5 {[%emt 0:13:42]} 15. Qd1 {[%emt 0:26:31]} Bg4 {[%emt 0:03:19]} 16. h3 {[%emt 0:00:07]} Rd8 {[%emt 0:01:17]} 17. Qe2 {[%emt 0:00:08]} Bxf3 {[%emt 0:12:12]} 18. Qxf3 {[%emt 0:00:02]} Bxe5 {[%emt 0:01:00]} 19. Rad1 {[%emt 0:06:27]} O-O {[%emt 0:02:56]} 20. b3 {[%emt 0:05:58]} b6 {[%emt 0:25:17]} 21. Rxd8 {[%emt 0:05:57]} Rxd8 {[%emt 0:00:18]} 22. Ne2 {[%emt 0:00:39]} Kg7 {[%emt 0:01:01]} 23. g3 {[%emt 0:03:06]} Rd6 {[%emt 0:04:43]} 24. Re1 {[%emt 0:01:57]} Qd7 {[%emt 0:05:05]} 25. Kg2 {[%emt 0:01:32]} Ne6 {[%emt 0:06:46]} 26. Bxe6 {[%emt 0:05:29]} Qxe6 {[%emt 0:00:23]} 27. Qe3 {[%emt 0:01:21]} c5 {[%emt 0:00:01]} 28. Nf4 {[%emt 0:04:38]} Bxf4 {[%emt 0:00:11]} 29. gxf4 {[%emt 0:00:16]} Rd4 {[%emt 0:00:14]} 30. f3 {[%emt 0:00:45]} Qd7 {[%emt 0:00:53]} 31. Qc3 {[%emt 0:00:52]} Kh7 {[%emt 0:00:34]} 32. Re2 {[%emt 0:00:08]} Qd6 {[%emt 0:00:31]} 33. e5 {[%emt 0:02:23]} Qd5 {[%emt 0:00:28]} 34. Re4 {[%emt 0:01:22]} Rxe4 {[%emt 0:00:22]} 35. fxe4 {[%emt 0:00:01]} Qxe4+ {[%emt 0:00:02]} 36. Qf3 {[%emt 0:00:14]} Qc2+ {[%emt 0:00:24]} 37. Kg3 {[%emt 0:01:03]} h5 {[%emt 0:00:31]} 38. Qd5 {[%emt 0:00:35]} Qf5 {[%emt 0:01:16]} 39. Qd8 {[%emt 0:00:07]} Qe6 {[%emt 0:00:39]} (39... Qe4 $19 {is more deadly.} 40. Qd2 Kg7) 40. Qd3 {[%emt 0:00:14]} Kg7 $17 {[%emt 0:00:25]} 41. Qc3 {[%emt 0:01:16]} Kf8 {[%emt 0:00:50]} 42. Qf3 {[%emt 0:00:44]} Kg7 {[%emt 0:00:20]} 43. Qc3 {[%emt 0:00:04]} Kh6 {[%emt 0:00:37]} 44. Qd3 {[%emt 0:00:52]} Kh7 {[%emt 0:00:50]} 45. Qc3 {[%emt 0:00:36]} Qf5 {[%emt 0:00:25]} 46. Qe3 {[%emt 0:00:42]} Kh6 {[%emt 0:00:20]} 47. Qc3 {[%emt 0:00:47]} h4+ {[%emt 0:00:15]} 48. Kg2 {[%emt 0:00:27]} Qxf4 {[%emt 0:00:09]} 49. Qe1 {[%emt 0:00:24]} Qg3+ {[%emt 0:00:20]} 50. Qxg3 {[%emt 0:00:10]} hxg3 {[%emt 0:00:01]} 51. h4 {[%emt 0:00:17]} g5 {[%emt 0:00:31]} 52. Kxg3 {[%emt 0:00:04]} Kh5 {[%emt 0:00:01]} 0-1

[Event "32nd Iranian Women-ch 2022"]
[Site "Kermanshah"]
[Date "2022.03.07"]
[Round "11.6"]
[White "Parvizi, Anita"]
[Black "Mahdavi, Mahdis"]
[Result "1/2-1/2"]
[ECO "B07"]
[WhiteElo "1693"]
[BlackElo "1692"]
[Annotator "NA RC"]
[PlyCount "27"]
[EventDate "2022.02.28"]
[EventType "tourn"]
[EventCountry "IRI"]
[SourceTitle "playchess.com"]
[Source "ChessBase"]
[SourceQuality "1"]
[TimeControl "5400+30"]

1. d4 {[%emt 0:00:20]} Nf6 {[%emt 0:00:08]} 2. Nf3 {[%emt 0:00:08]} g6 {[%emt 0:00:08]} 3. Nbd2 {[%emt 0:00:21]} Bg7 {[%emt 0:01:38]} 4. e4 {[%emt 0:00:12]} d6 {[%emt 0:00:06]} 5. Bb5+ {[%emt 0:00:18]} Nbd7 {[%emt 0:01:08]} 6. e5 {[%emt 0:00:32]} Nh5 {[%emt 0:04:38]} 7. e6 {[%emt 0:26:20]} fxe6 {[%emt 0:00:11]} 8. Ng5 {[%emt 0:00:10]} c6 {[%emt 0:02:59]} 9. Nxe6 {[%emt 0:00:51]} Qa5 {[%emt 0:00:31]} 10. b4 {[%emt 0:04:32]} Qxb4 {[%emt 0:00:24]} 11. Nc7+ {[%emt 0:06:11]} Kd8 {[%emt 0:00:39]} 12. Ne6+ {[%emt 0:06:58]} Ke8 {[%emt 0:00:29]} 13. Nc7+ {[%emt 0:00:24]} Kd8 {[%emt 0:19:07]} 14. Ne6+ {[%emt 0:00:48]} 1/2-1/2